fUSD/lending_fUSD_20250311
["ID","MTS","AMOUNT","RATE_DAILY","PERIOD"]
[355917920,1741715992538,501.73,8.881e-05,2]
[355917922,1741715997397,500.0,8.88e-05,2]
[355917924,1741715999110,500.0,8.881e-05,2]
[355917925,1741716001695,727.94,8.881e-05,2]
[355917926,1741716003684,156.0,8.901e-05,3]
[355917929,1741716006218,964.01,8.88e-05,2]
[355917930,1741716012807,500.0,8.881e-05,2]
[355917931,1741716014214,500.0,8.881e-05,2]
[355917933,1741716024676,640.43,8.138e-05,2]
[355917934,1741716026404,1862.79,8.881e-05,2]
[355917935,1741716035387,500.0,8.881e-05,2]
[355917936,1741716039026,808.88,8.881e-05,2]
[355917937,1741716043812,1662.51,8.88e-05,2]
[355917938,1741716045491,500.0,8.881e-05,2]
[355917939,1741716048576,500.0,8.881e-05,2]
[355917944,1741716051773,500.0,8.881e-05,2]
[355917946,1741716055630,833.22,8.881e-05,2]
[355917947,1741716062611,500.0,8.881e-05,2]
[355917948,1741716064213,637.53363976,8.881e-05,2]
[355917951,1741716066105,500.0,8.881e-05,2]
[355917952,1741716070120,1149.16,8.88e-05,2]
[355917953,1741716070694,949.36,8.881e-05,2]
[355917954,1741716072644,500.0,8.881e-05,2]
[355917955,1741716078408,500.0,8.881e-05,2]
[355917956,1741716079256,521.29,8.881e-05,2]
[355917957,1741716079799,1992.52,8.88e-05,2]
[355917958,1741716090314,500.0,8.88e-05,2]
[355917959,1741716091832,500.58003734,8.881e-05,2]
[355917960,1741716092097,500.0,8.881e-05,2]
[355917961,1741716099978,1229.6,8.88e-05,2]
[355917962,1741716103421,1219.84,8.881e-05,2]
[355917963,1741716108655,912.29,8.88e-05,2]
[355917964,1741716112947,939.67,8.881e-05,2]
[355917965,1741716117749,539.27234834,8.881e-05,2]
[355917966,1741716121181,500.0,8.881e-05,2]
[355917967,1741716122114,500.0,8.881e-05,2]
[355917970,1741716125031,500.0,8.881e-05,2]
[355917971,1741716127126,1396.03,8.88e-05,2]
[355917972,1741716127715,500.0,8.881e-05,2]
[355917973,1741716136131,1189.85,8.88e-05,2]
[355917974,1741716145269,500.0,8.881e-05,2]
[355917975,1741716145369,511.96318794,8.88e-05,2]
[355917976,1741716145803,500.0,8.881e-05,2]
[355917977,1741716148027,500.0,8.88e-05,2]
[355917978,1741716149140,500.0,8.881e-05,2]
[355917982,1741716154200,500.0,8.881e-05,2]
[355917983,1741716158919,500.0,8.881e-05,2]
[355917984,1741716165985,500.0,8.881e-05,2]
[355917988,1741716167450,500.0,8.88e-05,2]
[355917989,1741716169637,500.0,8.881e-05,2]
[355917990,1741716177730,500.0,8.881e-05,2]
[355917991,1741716179913,500.0,8.881e-05,2]
[355917992,1741716184748,500.0,8.881e-05,2]
[355917993,1741716188988,500.0,8.881e-05,2]
[355917994,1741716190394,2269.83,8.881e-05,2]
[355917995,1741716191155,1336.47,8.881e-05,2]
[355917996,1741716193411,500.0,8.88e-05,2]
[355917997,1741716207391,500.0,8.881e-05,2]
[355917998,1741716215814,636.34,8.881e-05,2]
[355917999,1741716226435,514.1,8.881e-05,2]
[355918000,1741716228541,2163.17,8.88e-05,2]
[355918001,1741716234755,500.0,8.881e-05,2]
[355918002,1741716237182,500.0,8.881e-05,2]
[355918003,1741716252052,707.87,8.881e-05,2]
[355918006,1741716269560,1403.0,8.881e-05,2]
[355918007,1741716284258,500.0,8.881e-05,2]
[355918008,1741716290886,348.89976297,8.881e-05,2]
[355918009,1741716298700,500.0,8.881e-05,2]
[355918010,1741716305006,156.0,8.901e-05,3]
[355918011,1741716306234,293.20801147,8.881e-05,2]
[355918012,1741716310321,500.0,8.881e-05,2]
[355918013,1741716313568,961.22542049,8.881e-05,2]
[355918014,1741716315775,1696.49,8.881e-05,2]
[355918015,1741716329081,520.52,8.881e-05,2]
[355918016,1741716338796,556.18,8.881e-05,2]
[355918017,1741716346919,598.2,8.881e-05,2]
[355918018,1741716355711,1283.01,8.881e-05,2]
[355918019,1741716365145,500.0,8.881e-05,2]
[355918020,1741716367346,511.93764707,8.881e-05,2]
[355918021,1741716393762,1889.48,8.881e-05,2]
[355918022,1741716421033,785.46,8.881e-05,2]
[355918023,1741716434243,500.0,8.881e-05,2]
[355918029,1741716448377,500.0,8.881e-05,2]
[355918030,1741716453616,500.0,8.881e-05,2]
[355918031,1741716462426,500.0,8.881e-05,2]
[355918032,1741716474838,529.54,8.881e-05,2]
[355918033,1741716489373,928.59,8.881e-05,2]
[355918058,1741716497636,500.0,8.881e-05,2]
[355918059,1741716507067,500.0,8.881e-05,2]
[355918060,1741716515758,500.0,8.881e-05,2]
[355918061,1741716532841,808.91,8.881e-05,2]
[355918062,1741716536698,17623.38,8.086e-05,2]
[355918064,1741716541039,500.0,8.881e-05,2]
[355918065,1741716544102,1859.89,8.881e-05,2]
[355918066,1741716558268,500.0,8.881e-05,2]
[355918067,1741716559673,-150.0,8.981e-05,2]
[355918068,1741716559699,-550.0,8.981e-05,2]
[355918069,1741716559727,-300.0,8.983e-05,2]
[355918070,1741716559753,-150.0,8.983e-05,2]
[355918071,1741716559779,-550.0,8.984e-05,2]
[355918072,1741716559805,-3932.0,8.984e-05,2]
[355918073,1741716559831,-501.48080671,8.984e-05,2]
[355918074,1741716559875,-1531.51919329,8.984e-05,2]
[355918075,1741716559901,-323.96736883,8.984e-05,2]
[355918076,1741716563927,500.0,8.881e-05,2]
[355918077,1741716564811,1000.0,8.219e-05,2]
[355918090,1741716571341,1390.38,8.219e-05,2]
[355918091,1741716583548,536.44,8.881e-05,2]
[355918092,1741716596639,500.0,8.881e-05,2]
[355918093,1741716604538,157.0,8.901e-05,3]
[355918094,1741716605299,743.24,8.881e-05,2]
[355918112,1741716632494,-954.03263117,8.984e-05,2]
[355918113,1741716632503,-1418.0,8.984e-05,2]
[355918114,1741716632512,-150.0,8.984e-05,2]
[355918115,1741716632521,-641.0,8.984e-05,2]
[355918116,1741716632530,-571.0,8.984e-05,2]
[355918117,1741716632539,-786.0,8.984e-05,2]
[355918118,1741716632548,-541.0,8.984e-05,2]
[355918119,1741716632557,-1270.0,8.984e-05,2]
[355918120,1741716632566,-907.0,8.984e-05,2]
[355918121,1741716632576,-1428.0,8.984e-05,2]
[355918122,1741716632585,-4077.0,8.984e-05,2]
[355918123,1741716632594,-561.661,8.984e-05,2]
[355918124,1741716632603,-150.0,8.987e-05,2]
[355918125,1741716632613,-550.0,8.987e-05,2]
[355918126,1741716632622,-500.0,8.989e-05,2]
[355918127,1741716632632,-500.0,8.989e-05,2]
[355918128,1741716632641,-500.0,8.989e-05,2]
[355918129,1741716632650,-500.0,8.989e-05,2]
[355918130,1741716632659,-500.0,8.989e-05,2]
[355918146,1741716632903,-500.0,8.989e-05,2]
[355918148,1741716632913,-500.0,8.989e-05,2]
[355918150,1741716632923,-500.0,8.989e-05,2]
[355918151,1741716632932,-500.0,8.989e-05,2]
[355918154,1741716632942,-500.0,8.989e-05,2]
[355918155,1741716632952,-500.0,8.989e-05,2]
[355918157,1741716632962,-500.0,8.989e-05,2]
[355918160,1741716632972,-266.61318479,8.989e-05,2]
[355918161,1741716632983,-500.0,8.989e-05,2]
[355918163,1741716632993,-557.71637899,8.989e-05,2]
[355918165,1741716633004,-500.0,8.989e-05,2]
[355918167,1741716633023,-500.0,8.989e-05,2]
[355918169,1741716633034,-514.74913323,8.989e-05,2]
[355918171,1741716633045,-500.0,8.989e-05,2]
[355918173,1741716633055,-500.0,8.989e-05,2]
[355918175,1741716633066,-500.0,8.989e-05,2]
[355918177,1741716633077,-500.0,8.989e-05,2]
[355918179,1741716633089,-500.0,8.989e-05,2]
[355918181,1741716633101,-500.0,8.989e-05,2]
[355918183,1741716633112,-500.0,8.989e-05,2]
[355918185,1741716633123,-500.0,8.989e-05,2]
[355918187,1741716633133,-500.0,8.989e-05,2]
[355918189,1741716633143,-500.0,8.989e-05,2]
[355918191,1741716633153,-268.09232831,8.989e-05,2]
[355918193,1741716633164,-560.39797651,8.989e-05,2]
[355918195,1741716633174,-500.0,8.989e-05,2]
[355918197,1741716633185,-500.0,8.989e-05,2]
[355918199,1741716633195,-500.0,8.989e-05,2]
[355918201,1741716633205,-300.0,8.989e-05,2]
[355918203,1741716633215,-500.0,8.989e-05,2]
[355918205,1741716633225,-500.0,8.989e-05,2]
[355918207,1741716633237,-500.0,8.989e-05,2]
[355918209,1741716633247,-500.0,8.989e-05,2]
[355918210,1741716633256,-500.0,8.989e-05,2]
[355918212,1741716633267,-500.0,8.989e-05,2]
[355918214,1741716633276,-500.0,8.989e-05,2]
[355918216,1741716633286,-500.0,8.989e-05,2]
[355918218,1741716633296,-500.0,8.989e-05,2]
[355918220,1741716633305,-500.0,8.989e-05,2]
[355918222,1741716633315,-500.0,8.989e-05,2]
[355918224,1741716633325,-500.0,8.989e-05,2]
[355918226,1741716633336,-535.82368541,8.989e-05,2]
[355918228,1741716633346,-320.40171854,8.989e-05,2]
[355918232,1741716633382,-518.94,8.989e-05,2]
[355918234,1741716633394,-371.00528146,8.989e-05,2]
[355918236,1741716633405,-178.004,8.989e-05,2]
[355918238,1741716633415,-530.30129165,8.989e-05,2]
[355918243,1741716633454,-7.95785619,8.989e-05,2]
[355918245,1741716633464,-518.14667754,8.989e-05,2]
[355918247,1741716633475,-500.0,8.989e-05,2]
[355918249,1741716633487,-500.0,8.989e-05,2]
[355918251,1741716633498,-1646.55,8.989e-05,2]
[355918253,1741716633509,-500.0,8.989e-05,2]
[355918255,1741716633520,-500.0,8.989e-05,2]
[355918257,1741716633530,-1130.66,8.989e-05,2]
[355918258,1741716633541,-500.0,8.989e-05,2]
[355918260,1741716633552,-500.0,8.989e-05,2]
[355918262,1741716633563,-554.82,8.989e-05,2]
[355918264,1741716633573,-579.83,8.989e-05,2]
[355918266,1741716633584,-500.0,8.989e-05,2]
[355918268,1741716633595,-249.89098754,8.989e-05,2]
[355918271,1741716633608,-250.10901246,8.989e-05,2]
[355918272,1741716633619,-500.0,8.989e-05,2]
[355918274,1741716633630,-500.0,8.989e-05,2]
[355918276,1741716633640,-938.4,8.989e-05,2]
[355918278,1741716633650,-2041.78,8.989e-05,2]
[355918280,1741716633660,-1321.83,8.989e-05,2]
[355918282,1741716633670,-1555.45,8.989e-05,2]
[355918284,1741716633679,-1000.55,8.989e-05,2]
[355918286,1741716633690,-1049.43030279,8.989e-05,2]
[355918288,1741716633704,-14.66969721,8.989e-05,2]
[355918290,1741716633714,-911.4305298,8.989e-05,2]
[355918293,1741716633729,-68.1794702,8.989e-05,2]
[355918295,1741716633740,-500.0,8.989e-05,2]
[355918297,1741716633750,-772.29,8.989e-05,2]
[355918299,1741716633761,-500.0,8.989e-05,2]
[355918301,1741716633771,-405.6305298,8.989e-05,2]
[355918303,1741716633783,-94.3694702,8.989e-05,2]
[355918305,1741716633793,-560.84,8.989e-05,2]
[355918307,1741716633803,-500.0,8.989e-05,2]
[355918309,1741716633813,-500.0,8.989e-05,2]
[355918311,1741716633823,-895.01,8.989e-05,2]
[355918313,1741716633832,-534.93,8.989e-05,2]
[355918315,1741716633842,-625.13,8.989e-05,2]
[355918317,1741716633852,-500.0,8.989e-05,2]
[355918318,1741716633861,-412.13617778,8.989e-05,2]
[355918321,1741716633882,-1155.64382222,8.989e-05,2]
[355918323,1741716633892,-576.98,8.989e-05,2]
[355918325,1741716633903,-477.93898374,8.989e-05,2]
[355918328,1741716633914,-767.82,8.989e-05,2]
[355918330,1741716633924,-500.0,8.989e-05,2]
[355918332,1741716633933,-500.0,8.989e-05,2]
[355918333,1741716633943,-516.87749605,8.989e-05,2]
[355918335,1741716633953,-500.0,8.989e-05,2]
[355918337,1741716633963,-500.0,8.989e-05,2]
[355918339,1741716633973,-652.0,8.989e-05,2]
[355918341,1741716633985,-1123.44,8.989e-05,2]
[355918343,1741716633995,-500.0,8.989e-05,2]
[355918346,1741716634009,-500.0,8.989e-05,2]
[355918347,1741716634021,-500.0,8.989e-05,2]
[355918349,1741716634031,-512.63,8.989e-05,2]
[355918351,1741716634042,-500.0,8.989e-05,2]
[355918353,1741716634055,-822.00736512,8.989e-05,2]
[355918356,1741716634067,-1158.79263488,8.989e-05,2]
[355918358,1741716634077,-555.79,8.989e-05,2]
[355918360,1741716634087,-2491.02,8.989e-05,2]
[355918362,1741716634099,-500.0,8.989e-05,2]
[355918364,1741716634108,-1704.53,8.989e-05,2]
[355918366,1741716634117,-1290.15,8.989e-05,2]
[355918368,1741716634127,-1981.44,8.989e-05,2]
[355918369,1741716634136,-525.61,8.989e-05,2]
[355918371,1741716634146,-1368.27,8.989e-05,2]
[355918374,1741716634155,-908.14,8.989e-05,2]
[355918375,1741716634165,-500.0,8.989e-05,2]
[355918377,1741716634175,-500.0,8.989e-05,2]
[355918379,1741716634184,-500.0,8.989e-05,2]
[355918381,1741716634194,-1918.73,8.989e-05,2]
[355918383,1741716634204,-550.0,8.991e-05,2]
[355918385,1741716634215,-373.02860681,8.991e-05,2]
[355918388,1741716634234,-307.5349168,8.994e-05,2]
[355918391,1741716634255,-866.0685464,8.994e-05,2]
[355918394,1741716634274,-182.9676039,8.994e-05,2]
[355918397,1741716634294,-184.0182862,8.994e-05,2]
[355918399,1741716634314,-632.5125699,8.994e-05,2]
[355918402,1741716634331,-1344.4776536,8.994e-05,2]
[355918405,1741716634349,-3932.0,8.994e-05,2]
[355918407,1741716634369,-150.0,8.994e-05,2]
[355918410,1741716634389,-1012.0,8.994e-05,2]
[355918413,1741716634410,-150.0,8.996e-05,2]
[355918416,1741716634429,-150.0,8.996e-05,2]
[355918419,1741716634448,-150.982,8.996e-05,2]
[355918422,1741716634466,-1913.11,8.997e-05,2]
[355918424,1741716634488,-877.43,8.997e-05,2]
[355918426,1741716634502,-500.0,8.997e-05,2]
[355918429,1741716634524,-4982.94,8.997e-05,2]
[355918432,1741716634538,-1059.38,8.997e-05,2]
[355918434,1741716634557,-598.03,8.997e-05,2]
[355918437,1741716634573,-1500.84981132,8.997e-05,2]
[355918740,1741716637898,-404.57018868,8.997e-05,2]
[355918742,1741716637908,-813.06539125,8.997e-05,2]
[355918746,1741716637920,-1490.17618375,8.997e-05,2]
[355918748,1741716637929,-500.0,8.997e-05,2]
[355918751,1741716637939,-646.01,8.997e-05,2]
[355918753,1741716637949,-153.80157,8.997e-05,2]
[355918755,1741716637959,-910.0503396,8.997e-05,2]
[355918759,1741716637988,-519.1396604,8.997e-05,2]
[355918761,1741716637999,-152.872762,8.997e-05,2]
[355918763,1741716638009,-878.07,8.997e-05,2]
[355918765,1741716638021,-1859.81,8.997e-05,2]
[355918767,1741716638035,-1144.01869323,8.997e-05,2]
[355918769,1741716638046,-1928.9,8.997e-05,2]
[355918780,1741716638148,-1546.84130677,8.997e-05,2]
[355918782,1741716638157,-1939.798216,8.997e-05,2]
[355918784,1741716638167,-1509.57,8.997e-05,2]
[355918786,1741716638176,-2232.97,8.997e-05,2]
[355918788,1741716638187,-634.48,8.997e-05,2]
[355918790,1741716638197,-1254.98,8.997e-05,2]
[355918792,1741716638206,-1757.19,8.997e-05,2]
[355918794,1741716638216,-860.33,8.997e-05,2]
[355918796,1741716638225,-1981.34,8.997e-05,2]
[355918798,1741716638236,-2721.12,8.997e-05,2]
[355918800,1741716638246,-2538.5,8.997e-05,2]
[355918802,1741716638255,-1556.9,8.997e-05,2]
[355918804,1741716638264,-1010.36,8.997e-05,2]
[355918806,1741716638273,-799.43,8.997e-05,2]
[355918808,1741716638282,-2989.73,8.997e-05,2]
[355918810,1741716638292,-853.95,8.997e-05,2]
[355918812,1741716638301,-1886.71,8.997e-05,2]
[355918814,1741716638310,-1136.39,8.997e-05,2]
[355918816,1741716638320,-2325.72,8.997e-05,2]
[355918818,1741716638329,-647.67,8.997e-05,2]
[355918820,1741716638341,-565.51,8.997e-05,2]
[355918822,1741716638351,-675.31,8.997e-05,2]
[355918824,1741716638362,-2343.49,8.997e-05,2]
[355918826,1741716638371,-1356.16,8.997e-05,2]
[355918828,1741716638380,-2599.2,8.997e-05,2]
[355918830,1741716638389,-500.0,8.997e-05,2]
[355918832,1741716638398,-3295.41,8.997e-05,2]
[355918835,1741716638407,-1308.95,8.997e-05,2]
[355918838,1741716638418,-3303.22,8.997e-05,2]
[355918840,1741716638427,-1565.24,8.997e-05,2]
[355918842,1741716638437,-1079.45,8.997e-05,2]
[355918844,1741716638447,-1263.21,8.997e-05,2]
[355918846,1741716638456,-1428.6,8.997e-05,2]
[355918848,1741716638465,-787.85,8.997e-05,2]
[355918850,1741716638474,-846.22,8.997e-05,2]
[355918852,1741716638485,-2128.4,8.997e-05,2]
[355918854,1741716638494,-1892.27,8.997e-05,2]
[355918856,1741716638503,-5614.33,8.997e-05,2]
[355918858,1741716638512,-1059.16,8.997e-05,2]
[355918860,1741716638522,-514.35,8.997e-05,2]
[355918862,1741716638532,-1002.12,8.997e-05,2]
[355918864,1741716638541,-500.0,8.997e-05,2]
[355918866,1741716638549,-385.73548412,8.998e-05,2]
[355918868,1741716638562,-11148.95332632,8.998e-05,2]
[355918870,1741716638573,-1200.0,8.998e-05,2]
[355918873,1741716638593,-949.82050932,8.998e-05,2]
[355918875,1741716638604,-384.1090751,8.998e-05,2]
[355918877,1741716638615,-603.79368055,8.998e-05,2]
[355918879,1741716638626,-1375.53136408,8.998e-05,2]
[355918997,1741716640035,-2656.70605,8.998e-05,2]
[355919000,1741716640073,-1926.10999999,8.998e-05,2]
[355919002,1741716640107,-667.67285361,8.998e-05,2]
[355919004,1741716640132,-338.52000002,8.998e-05,2]
[355919007,1741716640160,-411.9222,8.998e-05,2]
[355919020,1741716640340,-3800.0,8.998e-05,2]
[355919023,1741716640351,-625.42636932,8.998e-05,2]
[355919025,1741716640363,-513.61793351,8.998e-05,2]
[355919027,1741716640374,-1099.24815,8.998e-05,2]
[355919030,1741716640394,-413.405,8.998e-05,2]
[355919033,1741716640418,-4964.31847984,8.998e-05,2]
[355919035,1741716640429,-1021.095,8.998e-05,2]
[355919038,1741716640440,-483.21795857,8.998e-05,2]
[355919040,1741716640452,-957.52029218,8.998e-05,2]
[355919042,1741716640463,-520.02771299,8.998e-05,2]
[355919044,1741716640475,-82365.8186789,8.998e-05,2]
[355919046,1741716640487,-1014.98,8.998e-05,2]
[355919048,1741716640497,-500.0,8.998e-05,2]
[355919050,1741716640506,-982.14,8.998e-05,2]
[355919052,1741716640516,-1241.84,8.998e-05,2]
[355919054,1741716640525,-2098.5,8.998e-05,2]
[355919056,1741716640535,-500.0,8.998e-05,2]
[355919058,1741716640545,-157.99912,8.998e-05,2]
[355919060,1741716640554,-500.0,8.998e-05,2]
[355919062,1741716640564,-500.0,8.998e-05,2]
[355919064,1741716640574,-500.0,8.998e-05,2]
[355919083,1741716640584,-500.0,8.998e-05,2]
[355919088,1741716640802,-500.0,8.998e-05,2]
[355919091,1741716640813,-500.0,8.998e-05,2]
[355919093,1741716640822,-500.0,8.998e-05,2]
[355919095,1741716640833,-500.0,8.998e-05,2]
[355919096,1741716640842,-568.24,8.998e-05,2]
[355919098,1741716640852,-500.0,8.998e-05,2]
[355919100,1741716640862,-500.0,8.998e-05,2]
[355919102,1741716640871,-500.0,8.998e-05,2]
[355919104,1741716640881,-500.0,8.998e-05,2]
[355919106,1741716640891,-809.06,8.998e-05,2]
[355919108,1741716640900,-500.0,8.998e-05,2]
[355919110,1741716640910,-500.0,8.998e-05,2]
[355919112,1741716640919,-500.0,8.998e-05,2]
[355919114,1741716640928,-1753.14,8.998e-05,2]
[355919116,1741716640938,-1627.14,8.998e-05,2]
[355919118,1741716640948,-500.0,8.998e-05,2]
[355919120,1741716640957,-593.63,8.998e-05,2]
[355919122,1741716640967,-500.0,8.998e-05,2]
[355919124,1741716640976,-500.0,8.998e-05,2]
[355919126,1741716640987,-500.0,8.998e-05,2]
[355919128,1741716640998,-500.0,8.998e-05,2]
[355919130,1741716641007,-540.33,8.998e-05,2]
[355919132,1741716641017,-2317.99,8.998e-05,2]
[355919133,1741716641029,-500.0,8.998e-05,2]
[355919135,1741716641038,-1420.03,8.998e-05,2]
[355919137,1741716641047,-500.0,8.998e-05,2]
[355919139,1741716641056,-500.0,8.998e-05,2]
[355919141,1741716641066,-500.0,8.998e-05,2]
[355919143,1741716641077,-741.13,8.998e-05,2]
[355919145,1741716641086,-500.0,8.998e-05,2]
[355919147,1741716641096,-1252.67,8.998e-05,2]
[355919148,1741716641106,-500.0,8.998e-05,2]
[355919150,1741716641115,-500.0,8.998e-05,2]
[355919151,1741716641125,-500.0,8.998e-05,2]
[355919153,1741716641135,-500.0,8.998e-05,2]
[355919154,1741716641143,-500.0,8.998e-05,2]
[355919156,1741716641152,-500.0,8.998e-05,2]
[355919157,1741716641162,-500.0,8.998e-05,2]
[355919158,1741716641171,-500.0,8.998e-05,2]
[355919160,1741716641180,-500.0,8.998e-05,2]
[355919161,1741716641190,-500.0,8.998e-05,2]
[355919162,1741716641200,-405.37566733,8.998e-05,2]
[355919164,1741716641210,-500.0,8.998e-05,2]
[355919165,1741716641219,-500.0,8.998e-05,2]
[355919167,1741716641229,-1291.1,8.998e-05,2]
[355919168,1741716641240,-500.0,8.998e-05,2]
[355919170,1741716641249,-500.0,8.998e-05,2]
[355919171,1741716641259,-500.0,8.998e-05,2]
[355919173,1741716641269,-500.0,8.998e-05,2]
[355919174,1741716641278,-500.0,8.998e-05,2]
[355919176,1741716641288,-500.0,8.998e-05,2]
[355919177,1741716641298,-500.0,8.998e-05,2]
[355919179,1741716641308,-1956.41,8.998e-05,2]
[355919180,1741716641319,-500.0,8.998e-05,2]
[355919181,1741716641328,-500.0,8.998e-05,2]
[355919183,1741716641338,-500.0,8.998e-05,2]
[355919185,1741716641347,-500.0,8.998e-05,2]
[355919186,1741716641356,-500.0,8.998e-05,2]
[355919188,1741716641366,-1399.1,8.998e-05,2]
[355919189,1741716641375,-1422.07,8.998e-05,2]
[355919190,1741716641384,-1955.35,8.998e-05,2]
[355919192,1741716641393,-500.0,8.998e-05,2]
[355919193,1741716641403,-500.0,8.998e-05,2]
[355919195,1741716641413,-811.15,8.998e-05,2]
[355919197,1741716641423,-500.0,8.998e-05,2]
[355919198,1741716641432,-500.0,8.998e-05,2]
[355919200,1741716641442,-500.0,8.998e-05,2]
[355919201,1741716641451,-1833.4,8.998e-05,2]
[355919203,1741716641461,-500.0,8.998e-05,2]
[355919204,1741716641471,-500.0,8.998e-05,2]
[355919206,1741716641480,-313.14009264,8.998e-05,2]
[355919207,1741716641494,-539.29388279,8.998e-05,2]
[355919209,1741716641504,-500.0,8.998e-05,2]
[355919210,1741716641514,-500.0,8.998e-05,2]
[355919212,1741716641524,-500.0,8.998e-05,2]
[355919214,1741716641533,-500.0,8.998e-05,2]
[355919215,1741716641543,-500.0,8.998e-05,2]
[355919217,1741716641552,-673.97,8.998e-05,2]
[355919218,1741716641562,-894.44,8.998e-05,2]
[355919220,1741716641572,-689.81,8.998e-05,2]
[355919221,1741716641581,-500.0,8.998e-05,2]
[355919223,1741716641591,-785.27,8.998e-05,2]
[355919224,1741716641600,-500.0,8.998e-05,2]
[355919226,1741716641609,-1100.16,8.998e-05,2]
[355919227,1741716641618,-500.0,8.998e-05,2]
[355919229,1741716641627,-500.0,8.998e-05,2]
[355919230,1741716641636,-510.17146138,8.998e-05,2]
[355919232,1741716641646,-500.0,8.998e-05,2]
[355919233,1741716641655,-500.0,8.998e-05,2]
[355919235,1741716641664,-500.0,8.998e-05,2]
[355919236,1741716641673,-791.07,8.998e-05,2]
[355919238,1741716641682,-500.0,8.998e-05,2]
[355919239,1741716641692,-640.66,8.998e-05,2]
[355919241,1741716641701,-173.48452931,8.998e-05,2]
[355919243,1741716641718,-326.51547069,8.998e-05,2]
[355919244,1741716641728,-608.32876505,8.998e-05,2]
[355919246,1741716641739,-500.0,8.998e-05,2]
[355919247,1741716641748,-719.32,8.998e-05,2]
[355919249,1741716641758,-500.0,8.998e-05,2]
[355919250,1741716641768,-1910.52,8.998e-05,2]
[355919252,1741716641779,-500.0,8.998e-05,2]
[355919253,1741716641789,-500.0,8.998e-05,2]
[355919255,1741716641799,-500.0,8.998e-05,2]
[355919256,1741716641808,-500.0,8.998e-05,2]
[355919258,1741716641817,-500.0,8.998e-05,2]
[355919259,1741716641826,-500.0,8.998e-05,2]
[355919261,1741716641835,-1861.84,8.998e-05,2]
[355919262,1741716641844,-500.0,8.998e-05,2]
[355919264,1741716641854,-533.25,8.998e-05,2]
[355919265,1741716641863,-500.0,8.998e-05,2]
[355919267,1741716641872,-541.87,8.998e-05,2]
[355919268,1741716641881,-500.0,8.998e-05,2]
[355919270,1741716641891,-500.0,8.998e-05,2]
[355919271,1741716641900,-562.94,8.998e-05,2]
[355919273,1741716641909,-1201.56,8.998e-05,2]
[355919274,1741716641919,-500.0,8.998e-05,2]
[355919276,1741716641928,-500.0,8.998e-05,2]
[355919277,1741716641938,-500.0,8.998e-05,2]
[355919279,1741716641948,-500.0,8.998e-05,2]
[355919280,1741716641957,-500.0,8.998e-05,2]
[355919282,1741716641966,-1199.95,8.998e-05,2]
[355919283,1741716641975,-500.0,8.998e-05,2]
[355919285,1741716641985,-500.0,8.998e-05,2]
[355919286,1741716641995,-587.15,8.998e-05,2]
[355919288,1741716642005,-500.0,8.998e-05,2]
[355919290,1741716642019,-515.57930402,8.998e-05,2]
[355919291,1741716642029,-649.36,8.998e-05,2]
[355919293,1741716642042,-500.0,8.998e-05,2]
[355919295,1741716642062,-1857.83,8.998e-05,2]
[355919296,1741716642084,-587.88,8.998e-05,2]
[355919298,1741716642099,-1875.81,8.998e-05,2]
[355919299,1741716642112,-500.0,8.998e-05,2]
[355919301,1741716642123,-1031.31,8.998e-05,2]
[355919302,1741716642135,-500.0,8.998e-05,2]
[355919304,1741716642146,-500.0,8.998e-05,2]
[355919305,1741716642156,-500.0,8.998e-05,2]
[355919307,1741716642165,-596.80624493,8.998e-05,2]
[355919308,1741716642174,-500.0,8.998e-05,2]
[355919310,1741716642183,-500.0,8.998e-05,2]
[355919311,1741716642194,-500.0,8.998e-05,2]
[355919313,1741716642204,-500.0,8.998e-05,2]
[355919314,1741716642213,-500.0,8.998e-05,2]
[355919316,1741716642222,-500.0,8.998e-05,2]